[Event "Titled Tuesday Blitz May 23 Early 2023"]
[White "Sanhueza, Cristian"]
[Black "Coelho, Ramyres Santana"]
[WhiteFideId "116815"]
[BlackFideId "2120690"]
[WhiteElo "2174"]
[BlackElo "1888"]
[Result "1-0"]
[Round "04"]
[TimeControl "180+2"]
[Date "2023.05.23"]
[WhiteClock "0:00:14"]
[BlackClock "0:00:11"]

1. e4 {[%clk 0:03:00]}  c5 {[%clk 0:02:55]} 2. Nf3 {[%clk 0:03:01]}  d6 {[%clk 0:02:55]} 3. d4 {[%clk 0:03:01]}  cxd4 {[%clk 0:02:56]} 4. Nxd4 {[%clk 0:03:02]}  Nf6 {[%clk 0:02:56]} 5. Nc3 {[%clk 0:03:03]}  a6 {[%clk 0:02:56]} 6. Be3 {[%clk 0:03:04]}  e6 {[%clk 0:02:57]} 7. g4 {[%clk 0:03:03]}  b5 {[%clk 0:02:56]} 8. g5 {[%clk 0:03:03]}  Nfd7 {[%clk 0:02:56]} 9. Qh5 {[%clk 0:03:03]}  g6 {[%clk 0:02:51]} 10. Qh4 {[%clk 0:03:04]}  Bb7 {[%clk 0:02:49]} 11. Bg2 {[%clk 0:03:04]}  Bg7 {[%clk 0:02:46]} 12. Qg3 {[%clk 0:03:02]}  Ne5 {[%clk 0:02:42]} 13. O-O-O {[%clk 0:02:55]}  Qc7 {[%clk 0:02:33]} 14. Ndxb5 {[%clk 0:02:35]}  axb5 {[%clk 0:02:29]} 15. Nxb5 {[%clk 0:02:36]}  Qc6 {[%clk 0:01:54]} 16. Nxd6+ {[%clk 0:02:36]}  Ke7 {[%clk 0:01:46]} 17. Nxb7 {[%clk 0:02:32]}  Qxb7 {[%clk 0:01:47]} 18. Bc5+ {[%clk 0:02:29]}  Ke8 {[%clk 0:01:43]} 19. Qb3 {[%clk 0:01:50]}  Qc6 {[%clk 0:01:22]} 20. Bd4 {[%clk 0:01:29]}  Nbd7 {[%clk 0:01:18]} 21. f4 {[%clk 0:01:21]}  Rb8 {[%clk 0:01:15]} 22. Qc3 {[%clk 0:01:21]}  Nc4 {[%clk 0:00:53]} 23. Bxg7 {[%clk 0:01:07]}  Rxb2 {[%clk 0:00:52]} 24. Bxh8 {[%clk 0:00:35]}  Qb5 {[%clk 0:00:51]} 25. Qxb2 {[%clk 0:00:25]}  Nxb2 {[%clk 0:00:50]} 26. Bxb2 {[%clk 0:00:26]}  Nc5 {[%clk 0:00:45]} 27. Bf6 {[%clk 0:00:23]}  Nd7 {[%clk 0:00:35]} 28. Bb2 {[%clk 0:00:22]}  Qb8 {[%clk 0:00:31]} 29. Rhf1 {[%clk 0:00:18]}  Qa7 {[%clk 0:00:26]} 30. Kb1 {[%clk 0:00:17]}  Nc5 {[%clk 0:00:21]} 31. Bf6 {[%clk 0:00:15]}  Qb6+ {[%clk 0:00:19]} 32. Kc1 {[%clk 0:00:14]}  Nd7 {[%clk 0:00:18]} 33. Bb2 {[%clk 0:00:14]}  Qe3+ {[%clk 0:00:18]} 34. Kb1 {[%clk 0:00:13]}  Qb6 {[%clk 0:00:18]} 35. e5 {[%clk 0:00:12]}  Nc5 {[%clk 0:00:17]} 36. Rd4 {[%clk 0:00:11]}  Qb5 {[%clk 0:00:15]} 37. Rfd1 {[%clk 0:00:10]}  Kf8 {[%clk 0:00:12]} 38. h4 {[%clk 0:00:08]}  Na4 {[%clk 0:00:11]} 39. Rxa4 {[%clk 0:00:03]}  Qxa4 {[%clk 0:00:12]} 40. Rf1 {[%clk 0:00:02]}  Qc4 {[%clk 0:00:11]} 41. Kc1 {[%clk 0:00:02]}  Qc5 {[%clk 0:00:10]} 42. Rf3 {[%clk 0:00:01]}  Qg1+ {[%clk 0:00:09]} 43. Bf1 {[%clk 0:00:02]}  Qg4 {[%clk 0:00:08]} 44. Rf2 {[%clk 0:00:02]}  Qxh4 {[%clk 0:00:07]} 45. Bd4 {[%clk 0:00:02]}  Qg4 {[%clk 0:00:07]} 46. Kd2 {[%clk 0:00:02]}  Qf5 {[%clk 0:00:08]} 47. a3 {[%clk 0:00:02]}  Qe4 {[%clk 0:00:07]} 48. c3 {[%clk 0:00:01]}  Qd5 {[%clk 0:00:08]} 49. a4 {[%clk 0:00:01]}  Qa2+ {[%clk 0:00:09]} 50. Ke3 {[%clk 0:00:02]}  Qxa4 {[%clk 0:00:10]} 51. Bd3 {[%clk 0:00:02]}  Qa8 {[%clk 0:00:07]} 52. Rb2 {[%clk 0:00:02]}  Qd5 {[%clk 0:00:07]} 53. Be4 {[%clk 0:00:02]}  Qc4 {[%clk 0:00:07]} 54. Rc2 {[%clk 0:00:03]}  Qf1 {[%clk 0:00:06]} 55. Bd3 {[%clk 0:00:03]}  Qg1+ {[%clk 0:00:06]} 56. Kd2 {[%clk 0:00:03]}  Qg4 {[%clk 0:00:07]} 57. Kc1 {[%clk 0:00:03]}  Qxf4+ {[%clk 0:00:06]} 58. Kb2 {[%clk 0:00:04]}  Qxg5 {[%clk 0:00:06]} 59. c4 {[%clk 0:00:03]}  Qe7 {[%clk 0:00:06]} 60. c5 {[%clk 0:00:04]}  Qb7+ {[%clk 0:00:05]} 61. Kc1 {[%clk 0:00:03]}  Qd5 {[%clk 0:00:06]} 62. Bb2 {[%clk 0:00:02]}  Qxd3 {[%clk 0:00:06]} 63. c6 {[%clk 0:00:01]}  Qd8 {[%clk 0:00:05]} 64. c7 {[%clk 0:00:02]}  Qc8 {[%clk 0:00:05]} 65. Bd4 {[%clk 0:00:02]}  Ke8 {[%clk 0:00:06]} 66. Bb6 {[%clk 0:00:03]}  Kd7 {[%clk 0:00:07]} 67. Rd2+ {[%clk 0:00:04]}  Kc6 {[%clk 0:00:06]} 68. Rd8 {[%clk 0:00:05]}  Qxc7 {[%clk 0:00:06]} 69. Bxc7 {[%clk 0:00:05]}  Kxc7 {[%clk 0:00:07]} 70. Rf8 {[%clk 0:00:06]}  Kc6 {[%clk 0:00:07]} 71. Rxf7 {[%clk 0:00:07]}  Kd5 {[%clk 0:00:08]} 72. Rxh7 {[%clk 0:00:07]}  Kxe5 {[%clk 0:00:09]} 73. Rg7 {[%clk 0:00:08]}  Kf6 {[%clk 0:00:09]} 74. Ra7 {[%clk 0:00:09]}  Kf5 {[%clk 0:00:09]} 75. Kd2 {[%clk 0:00:10]}  e5 {[%clk 0:00:10]} 76. Ke3 {[%clk 0:00:11]}  g5 {[%clk 0:00:11]} 77. Ra5 {[%clk 0:00:11]}  g4 {[%clk 0:00:11]} 78. Ra4 {[%clk 0:00:11]}  g3 {[%clk 0:00:11]} 79. Kf3 {[%clk 0:00:11]}  g2 {[%clk 0:00:11]} 80. Kxg2 {[%clk 0:00:11]}  e4 {[%clk 0:00:11]} 81. Kf2 {[%clk 0:00:11]}  Kf4 {[%clk 0:00:12]} 82. Rb4 {[%clk 0:00:11]}  Ke5 {[%clk 0:00:12]} 83. Ke3 {[%clk 0:00:12]}  Kd5 {[%clk 0:00:13]} 84. Rxe4 {[%clk 0:00:13]}  Kc5 {[%clk 0:00:14]} 85. Kd3 {[%clk 0:00:14]}  Kd5 {[%clk 0:00:15]} 86. Re3 {[%clk 0:00:13]}  Kc5 {[%clk 0:00:11]} 87. Re5+ {[%clk 0:00:14]} 1-0


[Site "https://www.chess.com"]

[Event "Titled Tuesday Blitz May 23 Early 2023"]
[White "Nugumanov, Bakhtiyar"]
[Black "Martinez, Shawn"]
[WhiteFideId "13701797"]
[BlackFideId "2039770"]
[WhiteElo "2209"]
[BlackElo "2174"]
[Result "1-0"]
[Round "04"]
[TimeControl "180+2"]
[Date "2023.05.23"]
[WhiteClock "0:00:18"]
[BlackClock "0:00:00"]

1. Nf3 {[%clk 0:01:23]}  g6 {[%clk 0:02:58]} 2. g3 {[%clk 0:01:22]}  Bg7 {[%clk 0:02:58]} 3. Bg2 {[%clk 0:01:22]}  Nf6 {[%clk 0:02:57]} 4. O-O {[%clk 0:01:21]}  O-O {[%clk 0:02:55]} 5. c4 {[%clk 0:01:22]}  d6 {[%clk 0:02:48]} 6. Nc3 {[%clk 0:01:20]}  Nc6 {[%clk 0:02:47]} 7. d3 {[%clk 0:01:18]}  e5 {[%clk 0:02:46]} 8. Rb1 {[%clk 0:01:19]}  Be6 {[%clk 0:02:43]} 9. b4 {[%clk 0:01:19]}  Ne7 {[%clk 0:02:41]} 10. Ng5 {[%clk 0:01:14]}  Bc8 {[%clk 0:02:37]} 11. a4 {[%clk 0:01:12]}  h6 {[%clk 0:02:24]} 12. Nf3 {[%clk 0:01:13]}  Bf5 {[%clk 0:02:21]} 13. b5 {[%clk 0:01:02]}  Qc8 {[%clk 0:02:09]} 14. e4 {[%clk 0:00:51]}  Bh3 {[%clk 0:02:02]} 15. Be3 {[%clk 0:00:51]}  Bxg2 {[%clk 0:02:00]} 16. Kxg2 {[%clk 0:00:52]}  Nh5 {[%clk 0:01:58]} 17. Qd2 {[%clk 0:00:50]}  f5 {[%clk 0:01:03]} 18. Bxh6 {[%clk 0:00:49]}  Bxh6 {[%clk 0:00:14]} 19. Qxh6 {[%clk 0:00:50]}  Rf7 {[%clk 0:00:14]} 20. Ng5 {[%clk 0:00:48]}  Rg7 {[%clk 0:00:13]} 21. Nd5 {[%clk 0:00:41]}  Nxd5 {[%clk 0:00:11]} 22. cxd5 {[%clk 0:00:42]}  f4 {[%clk 0:00:11]} 23. Ne6 {[%clk 0:00:36]}  Qd7 {[%clk 0:00:09]} 24. Rbc1 {[%clk 0:00:26]}  Rc8 {[%clk 0:00:08]} 25. Nxg7 {[%clk 0:00:23]}  Nxg7 {[%clk 0:00:07]} 26. Qxg6 {[%clk 0:00:22]}  Qf7 {[%clk 0:00:06]} 27. Qxf7+ {[%clk 0:00:21]}  Kxf7 {[%clk 0:00:05]} 28. Rc2 {[%clk 0:00:19]}  Kf6 {[%clk 0:00:05]} 29. Rfc1 {[%clk 0:00:20]}  Ne8 {[%clk 0:00:03]} 30. a5 {[%clk 0:00:19]}  fxg3 {[%clk 0:00:02]} 31. hxg3 {[%clk 0:00:19]}  b6 {[%clk 0:00:02]} 32. axb6 {[%clk 0:00:19]}  axb6 {[%clk 0:00:02]} 33. Ra2 {[%clk 0:00:20]}  Ke7 {[%clk 0:00:02]} 34. Ra6 {[%clk 0:00:20]}  Kd7 {[%clk 0:00:02]} 35. Ra7 {[%clk 0:00:20]}  Nf6 {[%clk 0:00:00]} 36. Rc6 {[%clk 0:00:18]} 1-0


[Site "https://www.chess.com"]

[Event "Titled Tuesday Blitz May 23 Early 2023"]
[White "Fernandez Garcia, Gumersindo"]
[Black "Arcos Facio, Mateo"]
[WhiteFideId "24516740"]
[BlackFideId "3001199"]
[WhiteElo "2093"]
[BlackElo "2156"]
[Result "1-0"]
[Round "04"]
[TimeControl "180+2"]
[Date "2023.05.23"]
[WhiteClock "0:00:56"]
[BlackClock "0:00:00"]

1. e4 {[%clk 0:02:59]}  e5 {[%clk 0:02:59]} 2. Nf3 {[%clk 0:02:59]}  Nc6 {[%clk 0:02:59]} 3. d4 {[%clk 0:02:59]}  exd4 {[%clk 0:02:58]} 4. Bc4 {[%clk 0:02:59]}  Nf6 {[%clk 0:02:57]} 5. O-O {[%clk 0:02:58]}  Nxe4 {[%clk 0:02:52]} 6. Re1 {[%clk 0:02:57]}  d5 {[%clk 0:02:52]} 7. Bxd5 {[%clk 0:02:55]}  Qxd5 {[%clk 0:02:52]} 8. Nc3 {[%clk 0:02:55]}  Qa5 {[%clk 0:02:52]} 9. Nxe4 {[%clk 0:02:53]}  Be6 {[%clk 0:02:50]} 10. Neg5 {[%clk 0:02:53]}  O-O-O {[%clk 0:02:46]} 11. Nxe6 {[%clk 0:02:54]}  fxe6 {[%clk 0:02:46]} 12. Rxe6 {[%clk 0:02:55]}  Qd5 {[%clk 0:02:30]} 13. Qe2 {[%clk 0:02:50]}  Bd6 {[%clk 0:02:30]} 14. Bg5 {[%clk 0:02:42]}  Rdf8 {[%clk 0:02:28]} 15. Re1 {[%clk 0:02:40]}  Rxf3 {[%clk 0:01:58]} 16. Qxf3 {[%clk 0:02:31]}  Qxg5 {[%clk 0:01:56]} 17. Re8+ {[%clk 0:02:07]}  Rxe8 {[%clk 0:01:55]} 18. Rxe8+ {[%clk 0:02:08]}  Kd7 {[%clk 0:01:56]} 19. Re1 {[%clk 0:02:05]}  Ne5 {[%clk 0:00:53]} 20. Qxb7 {[%clk 0:01:58]}  Qd2 {[%clk 0:00:53]} 21. Qe4 {[%clk 0:01:55]}  g6 {[%clk 0:00:40]} 22. Qe2 {[%clk 0:01:43]}  Qxe2 {[%clk 0:00:35]} 23. Rxe2 {[%clk 0:01:44]}  Nc4 {[%clk 0:00:35]} 24. b3 {[%clk 0:01:43]}  Na3 {[%clk 0:00:30]} 25. g3 {[%clk 0:01:43]}  Kc6 {[%clk 0:00:23]} 26. Kg2 {[%clk 0:01:43]}  Kc5 {[%clk 0:00:23]} 27. Rd2 {[%clk 0:01:39]}  Be5 {[%clk 0:00:21]} 28. Kf3 {[%clk 0:01:36]}  Kb4 {[%clk 0:00:19]} 29. Ke4 {[%clk 0:01:36]}  Kc3 {[%clk 0:00:17]} 30. Re2 {[%clk 0:01:30]}  Bf6 {[%clk 0:00:17]} 31. Kd5 {[%clk 0:01:26]}  Nxc2 {[%clk 0:00:17]} 32. Re6 {[%clk 0:01:17]}  Bg7 {[%clk 0:00:11]} 33. Ke4 {[%clk 0:01:14]}  c5 {[%clk 0:00:08]} 34. Re7 {[%clk 0:01:14]}  Bf8 {[%clk 0:00:08]} 35. Rf7 {[%clk 0:01:13]}  Bd6 {[%clk 0:00:08]} 36. Rd7 {[%clk 0:01:13]}  Bf8 {[%clk 0:00:08]} 37. Rd8 {[%clk 0:01:07]}  Bh6 {[%clk 0:00:06]} 38. Rc8 {[%clk 0:01:07]}  Kb4 {[%clk 0:00:06]} 39. a3+ {[%clk 0:01:06]}  Kxb3 {[%clk 0:00:06]} 40. Rxc5 {[%clk 0:01:05]}  Bc1 {[%clk 0:00:05]} 41. Ra5 {[%clk 0:01:01]}  Bxa3 {[%clk 0:00:04]} 42. Rxa7 {[%clk 0:01:01]}  Bb4 {[%clk 0:00:03]} 43. Rxh7 {[%clk 0:00:59]}  Ne1 {[%clk 0:00:02]} 44. Kxd4 {[%clk 0:00:57]}  Nf3+ {[%clk 0:00:02]} 45. Ke3 {[%clk 0:00:57]}  Ne5 {[%clk 0:00:02]} 46. f4 {[%clk 0:00:56]}  Ng4+ {[%clk 0:00:02]} 47. Kf3 {[%clk 0:00:56]}  Nf6 {[%clk 0:00:02]} 48. Rg7 {[%clk 0:00:56]}  g5 {[%clk 0:00:02]} 49. Rxg5 {[%clk 0:00:55]}  Bc5 {[%clk 0:00:03]} 50. h4 {[%clk 0:00:56]}  Bg1 {[%clk 0:00:00]} 51. h5 {[%clk 0:00:56]} 1-0


[Site "https://www.chess.com"]

[Event "Titled Tuesday Blitz May 23 Early 2023"]
[White "Tarnowska, Aleksandra"]
[Black "Herzog2012"]
[WhiteFideId "1180967"]
[WhiteElo "1776"]
[BlackElo "2344"]
[Result "0-1"]
[Round "04"]
[TimeControl "180+2"]
[Date "2023.05.23"]
[WhiteClock "0:00:05"]
[BlackClock "0:00:13"]

1. e4 {[%clk 0:03:00]}  c5 {[%clk 0:02:59]} 2. Nf3 {[%clk 0:02:59]}  Nc6 {[%clk 0:02:59]} 3. Bb5 {[%clk 0:02:59]}  g6 {[%clk 0:02:59]} 4. O-O {[%clk 0:02:59]}  Bg7 {[%clk 0:02:58]} 5. c3 {[%clk 0:02:59]}  Nf6 {[%clk 0:02:57]} 6. e5 {[%clk 0:02:58]}  Nd5 {[%clk 0:02:56]} 7. d4 {[%clk 0:02:56]}  cxd4 {[%clk 0:02:56]} 8. cxd4 {[%clk 0:02:54]}  O-O {[%clk 0:02:56]} 9. Nc3 {[%clk 0:02:54]}  Nxc3 {[%clk 0:02:54]} 10. bxc3 {[%clk 0:02:55]}  d6 {[%clk 0:02:55]} 11. exd6 {[%clk 0:02:52]}  Qxd6 {[%clk 0:02:54]} 12. a4 {[%clk 0:02:47]}  Be6 {[%clk 0:02:54]} 13. Ba3 {[%clk 0:02:43]}  Qc7 {[%clk 0:02:51]} 14. Rc1 {[%clk 0:01:34]}  Bd5 {[%clk 0:02:26]} 15. Qe2 {[%clk 0:01:24]}  a6 {[%clk 0:02:16]} 16. Bd3 {[%clk 0:01:15]}  Rfe8 {[%clk 0:02:07]} 17. Be4 {[%clk 0:01:08]}  Qd7 {[%clk 0:01:46]} 18. Rfd1 {[%clk 0:00:47]}  b5 {[%clk 0:01:10]} 19. axb5 {[%clk 0:00:42]}  axb5 {[%clk 0:01:11]} 20. Bc5 {[%clk 0:00:36]}  Bc4 {[%clk 0:01:01]} 21. Qe3 {[%clk 0:00:32]}  Ra2 {[%clk 0:00:42]} 22. d5 {[%clk 0:00:27]}  Na5 {[%clk 0:00:38]} 23. Qf4 {[%clk 0:00:20]}  Nb3 {[%clk 0:00:32]} 24. Ng5 {[%clk 0:00:17]}  Rf8 {[%clk 0:00:24]} 25. Rb1 {[%clk 0:00:13]}  Nxc5 {[%clk 0:00:22]} 26. Bf3 {[%clk 0:00:10]}  Nd3 {[%clk 0:00:21]} 27. Qe3 {[%clk 0:00:06]}  Bh6 {[%clk 0:00:20]} 28. h4 {[%clk 0:00:06]}  Nxf2 {[%clk 0:00:18]} 29. Rd2 {[%clk 0:00:04]}  Rxd2 {[%clk 0:00:17]} 30. Qxd2 {[%clk 0:00:05]}  Ng4 {[%clk 0:00:17]} 31. Qf4 {[%clk 0:00:03]}  Nf6 {[%clk 0:00:15]} 32. Rd1 {[%clk 0:00:03]}  Nxd5 {[%clk 0:00:15]} 33. Qd4 {[%clk 0:00:02]}  Bg7 {[%clk 0:00:15]} 34. Qd2 {[%clk 0:00:02]}  Bxc3 {[%clk 0:00:14]} 35. Qc2 {[%clk 0:00:02]}  Ne3 {[%clk 0:00:10]} 36. Rxd7 {[%clk 0:00:01]}  Nxc2 {[%clk 0:00:10]} 37. Rxe7 {[%clk 0:00:02]}  Bf6 {[%clk 0:00:09]} 38. Rb7 {[%clk 0:00:01]}  Bxg5 {[%clk 0:00:10]} 39. hxg5 {[%clk 0:00:01]}  b4 {[%clk 0:00:10]} 40. Be4 {[%clk 0:00:02]}  b3 {[%clk 0:00:10]} 41. Rc7 {[%clk 0:00:02]}  Na3 {[%clk 0:00:09]} 42. Ra7 {[%clk 0:00:01]}  Nb5 {[%clk 0:00:09]} 43. Rb7 {[%clk 0:00:02]}  Nd6 {[%clk 0:00:08]} 44. Rb4 {[%clk 0:00:01]}  Nxe4 {[%clk 0:00:09]} 45. Rxc4 {[%clk 0:00:02]}  Rb8 {[%clk 0:00:09]} 46. Rc1 {[%clk 0:00:02]}  b2 {[%clk 0:00:09]} 47. Rb1 {[%clk 0:00:02]}  Nc3 {[%clk 0:00:10]} 48. Rxb2 {[%clk 0:00:02]}  Rxb2 {[%clk 0:00:09]} 49. Kh2 {[%clk 0:00:03]}  Ne4 {[%clk 0:00:09]} 50. Kh3 {[%clk 0:00:04]}  Nxg5+ {[%clk 0:00:10]} 51. Kh4 {[%clk 0:00:04]}  Ne6 {[%clk 0:00:11]} 52. g4 {[%clk 0:00:05]}  f5 {[%clk 0:00:12]} 53. Kg3 {[%clk 0:00:05]}  f4+ {[%clk 0:00:12]} 54. Kh4 {[%clk 0:00:05]}  g5+ {[%clk 0:00:13]} 55. Kh5 {[%clk 0:00:05]}  Rh2# {[%clk 0:00:13]} 0-1


[Site "https://www.chess.com"]

[Event "Titled Tuesday Blitz May 23 Early 2023"]
[White "Peiris, T G M"]
[Black "Putri, Regita Desyari"]
[WhiteFideId "9901310"]
[BlackFideId "7109083"]
[WhiteElo "2022"]
[BlackElo "1930"]
[Result "1/2-1/2"]
[Round "04"]
[TimeControl "180+2"]
[Date "2023.05.23"]
[WhiteClock "0:00:04"]
[BlackClock "0:00:06"]

1. e4 {[%clk 0:02:59]}  e5 {[%clk 0:02:59]} 2. Nf3 {[%clk 0:02:59]}  Nc6 {[%clk 0:02:59]} 3. Bb5 {[%clk 0:02:58]}  a6 {[%clk 0:02:59]} 4. Ba4 {[%clk 0:02:57]}  Nf6 {[%clk 0:03:00]} 5. O-O {[%clk 0:02:57]}  Be7 {[%clk 0:03:00]} 6. Re1 {[%clk 0:02:54]}  b5 {[%clk 0:02:59]} 7. Bb3 {[%clk 0:02:54]}  O-O {[%clk 0:02:59]} 8. c3 {[%clk 0:02:53]}  d5 {[%clk 0:02:58]} 9. exd5 {[%clk 0:02:48]}  Nxd5 {[%clk 0:02:59]} 10. Nxe5 {[%clk 0:02:42]}  Nxe5 {[%clk 0:03:00]} 11. Rxe5 {[%clk 0:02:42]}  c6 {[%clk 0:03:01]} 12. Bxd5 {[%clk 0:02:27]}  cxd5 {[%clk 0:03:00]} 13. d4 {[%clk 0:02:25]}  Bd6 {[%clk 0:02:46]} 14. Re3 {[%clk 0:01:51]}  Qh4 {[%clk 0:02:15]} 15. h3 {[%clk 0:01:43]}  Bf5 {[%clk 0:01:36]} 16. Nd2 {[%clk 0:01:31]}  Rae8 {[%clk 0:01:09]} 17. Nf3 {[%clk 0:01:21]}  Qf6 {[%clk 0:01:00]} 18. Bd2 {[%clk 0:01:07]}  Be4 {[%clk 0:00:57]} 19. Ng5 {[%clk 0:00:24]}  Bf4 {[%clk 0:00:25]} 20. Nxe4 {[%clk 0:00:15]}  dxe4 {[%clk 0:00:26]} 21. Re1 {[%clk 0:00:15]}  Bc7 {[%clk 0:00:26]} 22. Be3 {[%clk 0:00:14]}  Qd6 {[%clk 0:00:26]} 23. g3 {[%clk 0:00:14]}  Qd7 {[%clk 0:00:27]} 24. Kg2 {[%clk 0:00:13]}  f5 {[%clk 0:00:27]} 25. Qd2 {[%clk 0:00:12]}  f4 {[%clk 0:00:22]} 26. Bxf4 {[%clk 0:00:12]}  Bxf4 {[%clk 0:00:22]} 27. gxf4 {[%clk 0:00:12]}  Re6 {[%clk 0:00:20]} 28. Kh2 {[%clk 0:00:11]}  Rh6 {[%clk 0:00:18]} 29. Qe3 {[%clk 0:00:11]}  Rxf4 {[%clk 0:00:14]} 30. Rg1 {[%clk 0:00:08]}  Qf5 {[%clk 0:00:07]} 31. Qg3 {[%clk 0:00:05]}  Rxf2+ {[%clk 0:00:07]} 32. Rg2 {[%clk 0:00:05]}  Rxg2+ {[%clk 0:00:06]} 33. Qxg2 {[%clk 0:00:05]}  Qf4+ {[%clk 0:00:06]} 34. Qg3 {[%clk 0:00:04]}  Qd2+ {[%clk 0:00:05]} 35. Kh1 {[%clk 0:00:03]}  Rg6 {[%clk 0:00:05]} 36. Qb8+ {[%clk 0:00:02]}  Kf7 {[%clk 0:00:05]} 37. Qb7+ {[%clk 0:00:02]}  Ke6 {[%clk 0:00:05]} 38. Qxe4+ {[%clk 0:00:02]}  Kd6 {[%clk 0:00:05]} 39. Qe5+ {[%clk 0:00:03]}  Kc6 {[%clk 0:00:06]} 40. Qc5+ {[%clk 0:00:02]}  Kd7 {[%clk 0:00:06]} 41. Qd5+ {[%clk 0:00:02]}  Ke7 {[%clk 0:00:04]} 42. Qe5+ {[%clk 0:00:03]}  Re6 {[%clk 0:00:05]} 43. Qxg7+ {[%clk 0:00:03]}  Kd6 {[%clk 0:00:05]} 44. Qg3+ {[%clk 0:00:03]}  Kc6 {[%clk 0:00:06]} 45. Qf3+ {[%clk 0:00:03]}  Kd6 {[%clk 0:00:05]} 46. Qg3+ {[%clk 0:00:03]}  Kc6 {[%clk 0:00:06]} 47. Qf3+ {[%clk 0:00:03]}  Kd6 {[%clk 0:00:06]} 48. Qg3+ {[%clk 0:00:04]} 1/2-1/2


[Site "https://www.chess.com"]

[Event "Titled Tuesday Blitz May 23 Early 2023"]
[White "Rose, Felix"]
[Black "Hartikainen, Jarmo"]
[WhiteFideId "5105722"]
[BlackFideId "503134"]
[WhiteElo "2039"]
[BlackElo "2083"]
[Result "1-0"]
[Round "04"]
[TimeControl "180+2"]
[Date "2023.05.23"]
[WhiteClock "0:00:12"]
[BlackClock "0:00:00"]

1. e4 {[%clk 0:03:00]}  c5 {[%clk 0:02:59]} 2. Nf3 {[%clk 0:03:00]}  Nc6 {[%clk 0:02:59]} 3. d4 {[%clk 0:03:00]}  cxd4 {[%clk 0:02:58]} 4. Nxd4 {[%clk 0:03:01]}  Nf6 {[%clk 0:02:59]} 5. Nc3 {[%clk 0:02:53]}  d6 {[%clk 0:02:58]} 6. Bg5 {[%clk 0:02:52]}  Bd7 {[%clk 0:02:56]} 7. Qd2 {[%clk 0:02:48]}  a6 {[%clk 0:02:54]} 8. O-O-O {[%clk 0:02:47]}  e6 {[%clk 0:02:47]} 9. f4 {[%clk 0:02:45]}  h6 {[%clk 0:02:45]} 10. Bh4 {[%clk 0:01:42]}  g5 {[%clk 0:02:43]} 11. fxg5 {[%clk 0:01:32]}  Ng4 {[%clk 0:02:43]} 12. Nf3 {[%clk 0:01:23]}  Be7 {[%clk 0:02:07]} 13. g3 {[%clk 0:00:19]}  Nge5 {[%clk 0:01:16]} 14. Nxe5 {[%clk 0:00:17]}  Nxe5 {[%clk 0:01:15]} 15. g6 {[%clk 0:00:15]}  fxg6 {[%clk 0:00:32]} 16. Bxe7 {[%clk 0:00:15]}  Qxe7 {[%clk 0:00:33]} 17. Qxd6 {[%clk 0:00:15]}  Qxd6 {[%clk 0:00:33]} 18. Rxd6 {[%clk 0:00:16]}  Ke7 {[%clk 0:00:28]} 19. Rd4 {[%clk 0:00:16]}  Bc6 {[%clk 0:00:19]} 20. Bh3 {[%clk 0:00:13]}  Rhf8 {[%clk 0:00:00]} 21. Rhd1 {[%clk 0:00:12]} 1-0


[Site "https://www.chess.com"]

[Event "Titled Tuesday Blitz May 23 Early 2023"]
[White "lluiss"]
[Black "Butolo, Alexandru-Mircea"]
[BlackFideId "1261649"]
[WhiteElo "2270"]
[BlackElo "1850"]
[Result "0-1"]
[Round "04"]
[TimeControl "180+2"]
[Date "2023.05.23"]
[WhiteClock "0:00:00"]
[BlackClock "0:00:05"]

1. Nf3 {[%clk 0:03:00]}  Nf6 {[%clk 0:02:55]} 2. d4 {[%clk 0:02:59]}  d5 {[%clk 0:02:53]} 3. c4 {[%clk 0:02:56]}  e6 {[%clk 0:02:52]} 4. cxd5 {[%clk 0:02:56]}  exd5 {[%clk 0:02:51]} 5. Nc3 {[%clk 0:02:56]}  c6 {[%clk 0:02:48]} 6. Qc2 {[%clk 0:02:56]}  g6 {[%clk 0:02:46]} 7. Bg5 {[%clk 0:02:55]}  Bf5 {[%clk 0:02:43]} 8. Qb3 {[%clk 0:02:55]}  b6 {[%clk 0:02:39]} 9. Ne5 {[%clk 0:02:50]}  h6 {[%clk 0:02:34]} 10. Bxf6 {[%clk 0:02:31]}  Qxf6 {[%clk 0:02:35]} 11. Nxd5 {[%clk 0:02:29]}  cxd5 {[%clk 0:02:19]} 12. Qxd5 {[%clk 0:02:29]}  Bb4+ {[%clk 0:01:03]} 13. Kd1 {[%clk 0:02:27]}  O-O {[%clk 0:00:48]} 14. Qxa8 {[%clk 0:02:24]}  Rc8 {[%clk 0:00:48]} 15. e3 {[%clk 0:00:40]}  Nc6 {[%clk 0:00:32]} 16. Qxc8+ {[%clk 0:00:37]}  Bxc8 {[%clk 0:00:30]} 17. Rc1 {[%clk 0:00:38]}  Bb7 {[%clk 0:00:26]} 18. Nf3 {[%clk 0:00:28]}  Kg7 {[%clk 0:00:16]} 19. Bd3 {[%clk 0:00:26]}  Ne7 {[%clk 0:00:16]} 20. Ke2 {[%clk 0:00:25]}  Bxf3+ {[%clk 0:00:15]} 21. gxf3 {[%clk 0:00:25]}  Nf5 {[%clk 0:00:15]} 22. a3 {[%clk 0:00:19]}  Bd6 {[%clk 0:00:14]} 23. Rc6 {[%clk 0:00:19]}  Nh4 {[%clk 0:00:13]} 24. Be4 {[%clk 0:00:18]}  Qe7 {[%clk 0:00:10]} 25. Rhc1 {[%clk 0:00:16]}  f5 {[%clk 0:00:09]} 26. Bd5 {[%clk 0:00:15]}  f4 {[%clk 0:00:09]} 27. e4 {[%clk 0:00:14]}  Qd7 {[%clk 0:00:04]} 28. e5 {[%clk 0:00:10]}  Bxe5 {[%clk 0:00:04]} 29. dxe5 {[%clk 0:00:06]}  Qxd5 {[%clk 0:00:04]} 30. Rc7+ {[%clk 0:00:07]}  Kf8 {[%clk 0:00:04]} 31. Rc8+ {[%clk 0:00:07]}  Ke7 {[%clk 0:00:04]} 32. R1c7+ {[%clk 0:00:07]}  Ke6 {[%clk 0:00:05]} 33. Rc6+ {[%clk 0:00:06]}  Kxe5 {[%clk 0:00:05]} 34. Re8+ {[%clk 0:00:06]}  Kf5 {[%clk 0:00:05]} 35. Rf8+ {[%clk 0:00:05]}  Kg5 {[%clk 0:00:05]} 36. Rc3 {[%clk 0:00:04]}  Nf5 {[%clk 0:00:05]} 37. h4+ {[%clk 0:00:03]}  Kxh4 {[%clk 0:00:04]} 38. Rh8 {[%clk 0:00:03]}  Nd4+ {[%clk 0:00:04]} 39. Kf1 {[%clk 0:00:03]}  Kg5 {[%clk 0:00:05]} 40. Rf8 {[%clk 0:00:00]}  Nxf3 {[%clk 0:00:05]} 0-1


[Site "https://www.chess.com"]